bitfinex/quotes_ETHUSD_20250414
["timestamp","ask_amount","ask_price","bid_price","bid_amount"]
[1744658946795,17.70587,1637.8,1637.5,0.3966834]
[1744658947488,6.2743,1638.1,1637.6,3.71762694]
[1744658947805,5.494,1638.1,1637.9,0.7512]
[1744658948007,11.59864,1638.1,1637.9,0.7512]
[1744658948316,6.8853,1638.0,1637.7,6.85716]
[1744658948516,12.99049,1638.0,1637.7,2.34420369]
[1744658948721,6.8853,1638.0,1637.7,2.34420369]
[1744658948924,6.105,1638.0,1637.7,8.45020369]
[1744658949418,12.21017,1638.0,1637.7,8.45020369]
[1744658949719,11.59871,1638.1,1637.8,6.10568]
[1744658949947,11.59871,1638.1,1637.8,10.53379773]
[1744658950737,11.59871,1638.1,1637.8,4.42811773]
[1744658950893,11.59871,1638.1,1637.5,0.3966834]
[1744658950894,4.3051,1638.0,1637.5,1.2080834]
[1744658951223,6.10649,1637.6,1637.5,0.3966834]
[1744658951393,0.7551,1637.7,1637.5,6.5035334]
[1744658951719,6.10595,1637.8,1637.5,10.28838034]
[1744658951882,6.10595,1637.8,1637.5,11.92792137]
[1744658952078,6.88584,1637.9,1637.6,6.10649]
[1744658952283,6.10591,1637.8,1637.5,11.92789137]
[1744658952482,6.10587,1637.8,1637.5,18.03465137]
[1744658952718,12.21193,1637.8,1637.5,11.92789137]
[1744658952926,12.21183,1637.8,1637.5,11.92789137]
[1744658953225,6.10614,1637.7,1637.5,1.2151834]
[1744658953780,6.10614,1637.7,1637.5,0.3966834]
[1744658954199,12.21241,1637.7,1637.5,0.3966834]
[1744658954817,6.86979,1637.6,1637.5,0.3966834]
[1744658955593,0.7633,1637.6,1637.5,0.3966834]
[1744658956152,6.86979,1637.6,1637.5,0.3966834]
[1744658956619,8.36433858,1637.6,1637.5,0.3966834]
[1744658956931,6.86979,1637.6,1637.5,0.3966834]
[1744658957130,14.60029,1637.7,1637.5,0.3966834]
[1744658957524,11.60029,1637.7,1637.5,0.3966834]
[1744658957731,6.10649,1637.6,1637.5,0.3966834]
[1744658959144,11.60029,1637.7,1637.5,0.3966834]
[1744658959445,13.451989,1637.7,1637.5,0.3966834]
[1744658959641,6.10649,1637.6,1637.5,0.3966834]
[1744658960543,19.558279,1637.7,1637.5,0.3966834]
[1744658960749,13.451809,1637.7,1637.5,0.3966834]
[1744658961258,20.00533011,1637.7,1637.5,0.3966834]
[1744658961546,6.10649,1637.6,1637.5,0.3966834]
[1744658962948,13.89891011,1637.7,1637.5,0.3966834]
[1744658963150,6.10649,1637.6,1637.5,0.3966834]
[1744658963536,12.04739111,1637.7,1637.5,0.3966834]
[1744658964053,18.15368111,1637.7,1637.5,0.3966834]
[1744658964547,20.66053922,1637.7,1637.5,0.3966834]
[1744658964945,9.65649,1637.6,1637.5,0.3966834]
[1744658965121,10.44789,1637.6,1637.5,0.3966834]
[1744658966339,9.89789,1637.6,1637.5,0.3966834]
[1744658966720,15.94289,1637.6,1637.5,0.3966834]
[1744658967043,19.05383392,1637.6,1637.5,0.3966834]
[1744658968453,6.14,1637.8,1637.5,0.3966834]
[1744658968628,6.10624,1637.7,1637.5,0.3966834]
[1744658968815,12.24605,1637.8,1637.5,6.5033934]
[1744658969017,12.38864,1637.9,1637.6,0.7795]
[1744658969213,6.10576,1637.8,1637.6,0.7795]
[1744658969655,12.38856,1637.9,1637.6,0.7795]
[1744658970255,6.10576,1637.8,1637.6,0.7795]
[1744658970756,6.10546,1637.9,1637.6,0.7795]
[1744658970941,3.28500217,1638.2,1638.0,6.10487]
[1744658970942,5.81357523,1638.2,1638.0,6.10487]
[1744658971120,6.10352,1638.4,1638.0,6.10487]
[1744658971450,0.46185118,1638.4,1637.9,9.83739694]
[1744658971755,6.10431,1638.2,1637.9,6.87097]
[1744658972556,12.20875,1638.2,1637.9,6.87097]
[1744658972716,6.10388,1638.3,1637.9,12.9762]
[1744658972923,12.20795,1638.3,1637.9,12.9762]
[1744658973956,7.10004615,1638.4,1638.1,6.1046]
[1744658974263,6.55004615,1638.4,1638.1,6.1046]
[1744658974444,12.65372615,1638.4,1638.0,6.10481]
[1744658974646,12.65372615,1638.4,1638.0,13.80391169]
[1744658975034,12.65372615,1638.4,1638.0,7.69903169]
[1744658975233,12.65372615,1638.4,1638.0,13.80393169]
[1744658975558,6.10431,1638.2,1638.0,1.59422169]
[1744658975859,6.10431,1638.2,1637.9,6.87096]
[1744658976026,6.10392,1638.3,1637.9,12.97618]
[1744658976221,6.10426,1638.2,1637.9,6.87092]
[1744658976455,0.55,1638.3,1637.9,0.7657]
[1744658976660,6.1059,1637.8,1637.6,0.8318]
[1744658976831,6.10552,1637.9,1637.6,6.93829]
[1744658977031,12.21107,1637.9,1637.6,6.93829]
[1744658977343,11.634,1638.0,1637.6,8.28234934]
[1744658977663,6.14,1638.0,1637.9,6.91497]
[1744658980966,6.14,1638.0,1637.8,6.10554]
[1744658981623,6.14,1638.0,1637.7,6.90579]
[1744658981852,12.24521,1638.0,1637.7,6.90571]
[1744658982024,6.14,1638.0,1637.8,6.10557]
[1744658982360,6.10473,1638.1,1637.8,6.10557]
[1744658982570,12.20965,1638.1,1637.8,6.10557]
[1744658983277,6.10473,1638.1,1637.8,12.21119]
[1744658983431,6.10473,1638.1,1637.8,6.10557]
[1744658984074,6.10432,1638.2,1637.8,6.10557]
[1744658984275,6.10432,1638.2,1637.7,2.29638677]
[1744658984571,6.10432,1638.2,1637.8,12.21127]
[1744658984760,6.10498,1638.1,1637.7,6.90565]
[1744658985275,12.20996,1638.1,1637.7,13.01172]
[1744658985573,6.10498,1638.1,1637.8,6.10572]
[1744658985931,6.10516,1638.0,1637.7,6.90565]
[1744658986260,12.9442412,1638.1,1637.7,6.96670292]
[1744658986469,1.3491,1638.0,1637.6,0.8101]
[1744658986782,12.21178,1637.8,1637.5,0.3966834]
[1744658986963,6.10585,1637.8,1637.5,6.5034834]
[1744658987274,6.10625,1637.7,1637.5,0.3966834]
[1744658987478,6.10649,1637.6,1637.5,0.3966834]
[1744658987683,6.10625,1637.7,1637.5,0.3966834]
[1744658988386,12.21251,1637.7,1637.5,0.3966834]
[1744658989446,12.21257,1637.7,1637.5,0.3966834]
[1744658990192,6.10625,1637.7,1637.5,0.3966834]
[1744658990889,6.10649,1637.6,1637.5,0.3966834]
[1744658991091,6.10625,1637.7,1637.5,0.3966834]
[1744658991390,8.65720715,1637.8,1637.5,6.5035034]
[1744658991560,2.55140715,1637.8,1637.5,12.6103234]
[1744658991765,8.196502,1637.8,1637.5,6.5034134]
[1744658992491,8.196432,1637.8,1637.5,0.3966834]
[1744658993084,8.196432,1637.8,1637.5,12.6102334]
[1744658993292,0.47943124,1637.8,1637.6,6.10647]
[1744658994094,0.02,1637.8,1637.6,6.10647]
[1744658995087,21.351,1637.9,1637.6,6.08647]
[1744658995292,9.14,1637.9,1637.5,0.3966834]
[1744658995589,15.24541,1637.9,1637.6,6.10638]
[1744658995789,17.51537,1637.9,1637.6,6.10638]
[1744658996296,17.51537,1637.9,1637.7,0.8003]
[1744658996889,11.37537,1637.9,1637.7,0.8003]
[1744658997278,6.10575,1637.8,1637.6,0.7854]
[1744658999592,12.21163,1637.8,1637.6,0.7854]
[1744658999999,6.1055,1637.9,1637.6,12.99808]
[1744659000202,6.1055,1637.9,1637.6,6.89171]
[1744659000406,6.10603,1637.8,1637.5,1.1972834]
[1744659000609,6.10649,1637.6,1637.5,0.3966834]
[1744659001069,6.65649,1637.6,1637.5,0.3966834]
[1744659001272,10.37651694,1637.6,1637.5,0.3966834]
[1744659001466,18.963263,1637.7,1637.5,0.3966834]
[1744659001666,6.14,1637.7,1637.5,6.5034534]
[1744659001867,6.14,1638.0,1637.7,0.7839]
[1744659002110,6.14,1638.0,1637.8,6.10564]
[1744659002280,0.7706,1638.5,1637.8,0.84495409]
[1744659002495,6.10404,1638.3,1637.9,12.27132466]
[1744659002690,13.44297709,1638.3,1638.0,6.10496]
[1744659002920,6.105,1638.1,1637.8,0.7839]
[1744659003220,6.10495,1638.1,1637.8,0.7839]
[1744659003423,6.10463,1638.1,1637.6,0.8302]
[1744659003623,6.10649,1637.6,1637.5,0.3966834]
[1744659003795,6.10617,1637.7,1637.5,0.3966834]
[1744659003992,5.494,1637.8,1637.5,0.3966834]
[1744659004199,12.24549,1637.9,1637.6,6.10628]
[1744659004406,8.3361043,1637.9,1637.6,12.21266]
[1744659004607,14.4415243,1637.9,1637.6,6.10628]
[1744659004813,14.4415243,1637.9,1637.5,6.5035034]
[1744659005013,6.10642,1637.7,1637.5,0.3966834]
[1744659005886,12.41423,1637.8,1637.5,0.3966834]
[1744659006122,19.98461043,1637.8,1637.5,0.3966834]
[1744659006422,6.95845043,1637.8,1637.5,0.3966834]
[1744659006598,6.14,1637.9,1637.6,6.10649]
[1744659006796,6.14,1637.9,1637.6,12.21298]
[1744659006997,6.14,1637.9,1637.7,12.21196]
[1744659007209,6.14,1637.9,1637.7,6.92896]
[1744659007411,6.14,1637.9,1637.7,13.03493]
[1744659007592,6.14,1637.9,1637.7,6.92896]
[1744659007995,12.24542,1637.9,1637.7,0.823]
[1744659008420,7.50436866,1637.9,1637.7,6.92909]
[1744659008626,1.36436866,1637.9,1637.7,6.92909]
[1744659008927,12.820633,1638.0,1637.7,6.92909]
[1744659009626,12.820643,1638.0,1637.7,6.92909]
[1744659009826,0.610463,1638.0,1637.5,6.5033834]
[1744659009992,12.98164,1637.9,1637.5,12.6101034]
[1744659010697,6.10579,1637.8,1637.5,0.3966834]
[1744659010888,7.485863,1638.0,1637.6,0.7515]
[1744659011089,6.10539,1637.9,1637.6,6.85779]
[1744659011310,6.10575,1637.8,1637.6,0.7515]
[1744659011624,12.21112,1637.9,1637.6,0.7515]
[1744659011830,7.4645783,1637.9,1637.6,6.85798]
[1744659011993,7.485863,1638.0,1637.7,6.10607]
[1744659012194,1.380763,1638.0,1637.6,6.85798]
[1744659012509,6.10592,1637.8,1637.6,0.7515]
[1744659013115,12.21193,1637.8,1637.5,1.1849834]
[1744659013315,13.433123,1637.8,1637.5,1.1849834]
[1744659013526,13.433123,1637.8,1637.5,7.2918434]
[1744659013734,12.21264,1637.7,1637.5,0.3966834]
[1744659014109,6.10622,1637.7,1637.5,0.3966834]
[1744659014742,12.21249,1637.7,1637.5,0.3966834]
[1744659014941,7.4495883,1637.7,1637.5,0.3966834]
[1744659015139,13.5560083,1637.7,1637.5,0.3966834]
[1744659015339,6.10649,1637.6,1637.5,0.3966834]
[1744659015546,8.2461883,1637.7,1637.5,0.3966834]
[1744659015839,1.3433683,1637.7,1637.5,0.3966834]
[1744659016044,7.4494983,1637.7,1637.5,0.3966834]
[1744659016622,6.85143983,1637.6,1637.5,0.3966834]
[1744659016949,17.31803983,1637.6,1637.5,0.3966834]
[1744659021195,6.65798,1637.2,1637.1,0.05]
[1744659021486,22.718378,1637.2,1637.1,0.05]
[1744659021634,12.299798,1637.2,1637.1,0.05]
[1744659021836,18.407778,1637.2,1637.1,0.05]
[1744659022041,19.40406216,1637.2,1637.1,0.05]
[1744659022237,20.22056216,1637.2,1637.1,0.05]
[1744659024077,23.22056216,1637.2,1637.1,0.05]
[1744659026859,26.28769531,1637.2,1637.1,0.05]
[1744659027200,4.3159,1636.8,1636.3,0.55]
[1744659027400,6.66097,1636.4,1636.3,0.55]
[1744659027614,6.66097,1636.4,1636.3,4.55]
[1744659027615,12.80097,1636.4,1636.3,4.55]
[1744659027817,6.14,1636.4,1636.3,0.55]
[1744659028178,12.80097,1636.4,1636.3,0.55]
[1744659028524,18.97620935,1636.4,1636.3,0.55]
[1744659028815,21.97620935,1636.4,1636.3,0.55]
[1744659030704,19.45246287,1636.4,1636.3,0.55]
[1744659031279,24.94846287,1636.4,1636.3,0.55]
[1744659036016,17.49566287,1636.4,1636.3,0.55]
[1744659036344,18.04566287,1636.4,1636.3,0.55]
[1744659037041,24.45086287,1636.4,1636.3,0.55]
[1744659037346,25.00086287,1636.4,1636.3,0.55]
[1744659037649,9.11097,1636.4,1636.3,0.55]
[1744659038156,0.31878646,1636.5,1636.3,0.55]
[1744659038361,18.50231,1637.0,1636.4,6.9115]
[1744659038566,18.50231,1637.0,1636.4,6.91157]
[1744659038567,6.10953,1636.8,1636.4,6.91157]
[1744659039068,6.10825,1637.2,1636.9,0.8124]
[1744659039069,6.10815,1637.2,1636.9,0.8124]
[1744659039362,6.42683636,1637.2,1636.9,0.8124]
[1744659039663,12.21704,1637.1,1636.7,6.92218]
[1744659039960,6.10918,1636.9,1636.7,0.8124]
[1744659041461,7.880774,1636.9,1636.7,0.8124]
[1744659042260,1.771594,1636.9,1636.7,0.8124]
[1744659042481,5.498,1637.0,1636.8,6.10948]
[1744659042763,5.498,1637.0,1636.9,6.1091]
[1744659042968,5.498,1637.0,1636.7,6.92221]
[1744659043128,5.498,1637.0,1636.7,0.8124]
[1744659043328,5.498,1637.0,1636.8,12.21878]
[1744659043559,5.498,1637.0,1636.9,6.1091]
[1744659043760,5.498,1637.0,1636.8,6.10933]
[1744659044071,5.498,1637.0,1636.7,6.92219]
[1744659044267,7.269515,1637.0,1636.7,13.03189]
[1744659044563,19.487265,1637.0,1636.7,0.8124]
[1744659044865,7.269515,1637.0,1636.7,6.92213]
[1744659045158,7.269515,1637.0,1636.7,13.03184]
[1744659045366,5.498,1637.0,1636.8,6.10924]
[1744659045767,11.60677,1637.0,1636.7,13.03197]
[1744659046263,5.498,1637.0,1636.8,6.10941]
[1744659046431,5.498,1637.0,1636.8,6.10934]
[1744659046635,5.498,1637.0,1636.8,12.21867]
[1744659046964,5.498,1637.0,1636.9,6.1091]
[1744659047866,5.67,1637.3,1637.1,6.10814]
[1744659048045,11.77775,1637.3,1636.9,6.87525]
[1744659048548,6.108,1637.2,1636.9,12.98425]
[1744659049048,11.77775,1637.3,1636.9,12.98425]
[1744659049538,6.10813,1637.2,1636.9,0.7663]
[1744659049740,7.285943,1637.2,1636.9,0.7663]
[1744659049940,6.10841,1637.1,1636.9,0.7663]
[1744659050136,12.21702,1637.1,1636.7,12.21954]
[1744659050475,12.21789,1637.0,1636.7,0.8012]
[1744659050670,12.21789,1637.0,1636.5,0.8012]
[1744659050671,6.10919,1636.9,1636.5,0.8012]
[1744659050978,11.77919,1636.9,1636.7,4.0]
[1744659051269,11.77919,1636.9,1636.6,6.11009]
[1744659051270,11.77919,1636.9,1636.5,0.8012]
[1744659051449,5.67,1636.9,1636.7,6.10973]
[1744659052174,5.67,1636.9,1636.8,6.86588]
[1744659052374,5.67,1636.9,1636.8,0.7564]
[1744659052683,6.237,1636.9,1636.7,12.97583]
[1744659052834,5.67,1636.9,1636.8,6.10948]
[1744659053273,6.14,1637.1,1636.9,6.10891]
[1744659053632,6.14,1637.1,1636.9,12.21789]
[1744659053834,6.847813,1637.2,1637.0,6.88433]
[1744659054054,6.14,1637.7,1637.3,6.10761]
[1744659054255,0.30728125,1638.7,1637.9,0.7756]
[1744659054492,0.8183,1638.9,1638.6,6.10271]
[1744659054678,0.8183,1638.9,1638.6,6.10255]
[1744659054893,6.92006,1638.9,1638.4,6.10334]
[1744659055200,6.362006,1638.8,1638.3,6.10364]
[1744659055390,6.362006,1638.8,1638.2,6.10407]
[1744659055580,6.362006,1638.8,1638.3,6.1038]
[1744659055581,6.10267,1638.7,1638.3,6.1038]
[1744659055776,6.10277,1638.6,1638.2,6.10407]
[1744659055981,7.323314,1638.6,1638.2,6.10407]
[1744659056180,12.993314,1638.6,1638.2,6.10407]
[1744659056496,12.993314,1638.6,1637.9,9.8521132]
[1744659056497,6.1037,1638.4,1638.0,6.10495]
[1744659057192,6.65317,1638.5,1637.9,0.7756]
[1744659057193,6.10422,1638.3,1637.9,0.7756]
[1744659057564,6.10422,1638.3,1637.9,6.88094]
[1744659057799,7.325,1638.3,1637.9,6.88094]
[1744659058166,7.32493,1638.3,1637.9,0.7756]
[1744659058367,13.42911,1638.3,1637.9,0.7756]
[1744659058802,6.10435,1638.2,1637.9,0.7756]
[1744659059098,9.218,1638.2,1637.7,0.8157]
[1744659059298,6.10575,1637.8,1637.4,6.92268]
[1744659059598,6.10575,1637.8,1637.5,4.0]
[1744659059897,6.10572,1637.9,1637.5,4.0]
[1744659059898,6.10537,1637.9,1637.5,4.0]
[1744659060099,6.10637,1637.7,1637.5,4.0]
[1744659060303,6.10649,1637.6,1637.5,4.0]
[1744659060599,6.65649,1637.6,1637.5,4.0]
[1744659060798,9.65649,1637.6,1637.5,4.0]
[1744659061000,6.10818,1637.2,1637.0,0.7806]
[1744659061202,6.10818,1637.2,1636.7,12.21944]
[1744659061203,6.10855,1637.1,1636.8,6.10942]
[1744659061899,6.10855,1637.1,1636.7,6.89027]
[1744659062100,6.10807,1637.2,1636.8,6.10933]
[1744659062101,12.2162,1637.2,1636.8,6.10933]
[1744659062396,6.1084,1637.1,1636.8,6.10933]
[1744659062601,6.1084,1637.1,1636.7,6.89038]
[1744659062803,6.10884,1637.0,1636.7,0.7806]
[1744659062977,6.65811,1637.2,1636.7,2.14175408]
[1744659063184,12.7663,1637.2,1636.8,6.10916]
[1744659063488,6.10811,1637.2,1636.8,6.10916]
[1744659063676,15.6344,1637.3,1636.9,0.06108782]
[1744659063677,5.667,1637.3,1636.9,0.06108782]
[1744659064008,11.77513,1637.5,1637.1,6.10815]
[1744659064307,17.88223,1637.5,1637.1,12.21637]
[1744659064482,17.88223,1637.5,1637.1,7.329787]
[1744659064683,17.88223,1637.5,1637.1,13.438007]
[1744659065306,17.88223,1637.5,1637.1,7.329787]
[1744659065589,17.88223,1637.5,1637.1,12.21635]
[1744659065796,17.88215,1637.5,1637.1,12.21635]
[1744659066099,17.88215,1637.5,1637.1,12.21639]
[1744659066405,17.88215,1637.5,1637.1,12.2164]
[1744659067102,17.88215,1637.5,1637.2,0.0610762]
[1744659067103,5.668,1637.5,1637.2,0.0610762]
[1744659067304,6.10692,1637.5,1637.2,6.10785]
[1744659067490,18.68886,1637.8,1637.1,6.10831]
[1744659067807,6.10741,1637.4,1637.1,6.10831]
[1744659068008,6.10688,1637.5,1637.1,6.10822]
[1744659068219,6.10621,1637.7,1637.3,0.7939]
[1744659068512,12.2125,1637.7,1637.4,6.1071]
[1744659068805,6.10621,1637.7,1637.4,7.41405095]
[1744659069007,6.10621,1637.7,1637.4,1.30696095]
[1744659069213,6.10654,1637.6,1637.3,0.7939]
[1744659069576,6.10654,1637.6,1637.3,0.85496987]
[1744659069781,6.10654,1637.6,1637.3,6.96246987]
[1744659070103,12.21416,1637.5,1637.1,13.04752]
[1744659070295,6.10708,1637.5,1637.2,6.10797]
[1744659070497,6.10654,1637.6,1637.3,0.610797]
[1744659070814,12.21324,1637.6,1637.3,0.610797]
[1744659071413,11.808,1637.8,1637.6,6.10646]
[1744659071713,6.10436,1638.2,1637.9,6.10528]
[1744659071915,5.668,1638.2,1637.8,6.10575]
[1744659072081,6.10427,1638.2,1637.9,6.77668254]
[1744659072275,6.10427,1638.2,1637.9,12.820898]
[1744659072510,12.20876,1638.2,1637.9,6.715638]
[1744659072715,6.10427,1638.2,1637.9,6.715638]
[1744659073099,0.7514,1638.4,1637.9,6.715638]
[1744659073100,6.10481,1638.1,1637.9,0.610528]
[1744659073282,6.10481,1638.1,1637.8,6.10566]
[1744659073283,6.1057,1637.9,1637.7,0.7722]
[1744659073483,6.1057,1637.9,1637.8,4.0]
[1744659073717,6.6557,1637.9,1637.5,0.7757]
[1744659074013,6.10675,1637.6,1637.3,0.7757]
[1744659074405,12.21342,1637.6,1637.4,4.0]
[1744659074711,6.10667,1637.6,1637.4,4.0]
[1744659074923,6.10696,1637.5,1637.3,0.7757]
[1744659075120,6.10763,1637.3,1637.1,0.754]
[1744659075413,6.10724,1637.4,1637.2,4.0]
[1744659075585,6.10732,1637.4,1637.2,4.0]
[1744659075785,6.10732,1637.4,1637.1,7.60955527]
[1744659076011,3.0,1637.6,1637.1,1.50133527]
[1744659076214,3.0,1637.6,1637.4,6.10722]
[1744659076820,3.0,1637.6,1637.4,6.10716]
[1744659076995,3.0,1637.6,1637.4,6.10711]
[1744659077200,6.10697,1637.5,1637.1,12.902669]
[1744659077392,6.10697,1637.5,1637.1,6.794459]
[1744659077740,6.10697,1637.5,1637.2,6.10795]
[1744659077934,12.21407,1637.5,1637.1,12.902689]
[1744659078105,12.21407,1637.5,1637.1,12.902669]
[1744659078308,6.10727,1637.4,1637.1,6.794459]
[1744659078517,6.65687,1637.5,1636.9,6.93633]
[1744659078710,6.10873,1637.0,1636.7,6.10984]
[1744659080290,12.21763,1637.0,1636.7,6.10984]
[1744659080513,6.10873,1637.0,1636.7,6.10984]
[1744659080922,6.10873,1637.0,1636.7,12.21968]
[1744659081117,6.10811,1637.2,1636.8,6.1093]
[1744659081326,12.21627,1637.2,1636.8,12.21866]
[1744659081531,6.10838,1637.1,1636.8,6.1093]
[1744659081740,6.10838,1637.1,1636.8,12.21866]
[1744659082110,12.21691,1637.1,1636.8,6.1093]
[1744659082312,9.14,1637.4,1637.2,6.1078]
[1744659082495,1.42997,1637.8,1637.4,6.10695]
[1744659082701,6.10719,1637.5,1637.2,0.8273]
[1744659082997,6.10726,1637.4,1637.2,0.8273]
[1744659083228,12.21477,1637.4,1637.2,0.8273]
[1744659083422,6.10692,1637.5,1637.1,6.10833]
[1744659083629,6.10692,1637.5,1637.2,6.77975953]
[1744659083995,12.2141,1637.5,1637.2,0.610833]
[1744659084199,6.10715,1637.5,1637.1,12.21648]
[1744659084436,12.2143,1637.5,1637.1,12.27755478]
[1744659084639,6.10715,1637.5,1637.2,6.10791]
[1744659084827,12.21429,1637.5,1637.2,6.10791]
[1744659085638,6.10714,1637.5,1637.2,6.10791]
[1744659085932,6.14,1637.7,1637.5,6.10682]
[1744659086135,12.24626,1637.7,1637.4,6.10714]
[1744659086640,6.14,1637.7,1637.4,12.21427]
[1744659087000,12.24617,1637.7,1637.4,6.10713]
[1744659087948,6.10617,1637.7,1637.4,6.10713]
[1744659088453,12.21247,1637.7,1637.4,7.409747]
[1744659088754,12.21247,1637.7,1637.3,6.91904]
[1744659088755,6.10612,1637.7,1637.3,0.8115]
[1744659089037,6.10612,1637.7,1637.1,6.10832]
[1744659089038,6.10755,1637.4,1637.1,0.7612]
[1744659089243,6.10755,1637.4,1637.1,6.86955]
[1744659089410,6.10755,1637.4,1637.1,8.167357]
[1744659089610,12.21494,1637.4,1637.1,8.22843185]
[1744659089808,6.10739,1637.4,1637.1,2.12008185]
[1744659090023,6.10765,1637.3,1637.1,2.059007]
[1744659090238,6.10739,1637.4,1637.1,8.2283126]
[1744659090607,6.10652,1637.6,1637.1,2.1200826]
[1744659090809,6.10925,1636.9,1636.6,0.792]
[1744659091044,6.10958,1636.8,1636.7,4.0]
[1744659091219,6.10925,1636.9,1636.7,4.0]
[1744659092050,12.21851,1636.9,1636.6,6.9022]
[1744659092352,12.21853,1636.9,1636.6,0.792]
[1744659092959,12.21853,1636.9,1636.6,0.85309612]
[1744659093148,6.10956,1636.8,1636.6,0.792]
[1744659093546,6.11005,1636.7,1636.4,0.8065]
[1744659093857,6.11027,1636.6,1636.4,0.8065]
[1744659094054,6.11097,1636.4,1636.3,0.55]
[1744659095124,3.0,1636.6,1636.3,6.6612]
[1744659095551,9.11023,1636.6,1636.3,6.6612]
[1744659095925,6.11024,1636.6,1636.3,7.938558]
[1744659096132,6.11024,1636.6,1636.3,7.99966423]
[1744659096326,6.11024,1636.6,1636.3,1.827288]
[1744659096659,12.22066,1636.6,1636.3,1.827288]
[1744659096857,6.11067,1636.5,1636.3,0.55]
[1744659097466,12.2215,1636.5,1636.3,0.55]
[1744659097631,6.11097,1636.4,1636.3,0.55]
[1744659097957,12.22077,1636.6,1636.3,0.55]
[1744659098164,0.55,1636.6,1636.3,0.55]
[1744659098461,6.11094,1636.5,1636.3,0.55]
[1744659098662,12.22176,1636.5,1636.3,0.55]
[1744659098866,6.11082,1636.5,1636.3,0.55]
[1744659099381,12.22158,1636.5,1636.3,0.55]
[1744659099537,12.22155,1636.5,1636.3,0.55]
[1744659099738,6.11047,1636.6,1636.3,0.55]
[1744659100075,18.07196,1636.7,1636.4,6.11082]
[1744659100237,24.18201,1636.7,1636.4,6.11082]
[1744659100438,24.18201,1636.7,1636.3,12.77219]
[1744659100737,6.11023,1636.6,1636.3,6.661]
[1744659101165,11.962,1636.7,1636.4,6.11083]
[1744659101367,11.962,1636.7,1636.4,0.7581]
[1744659101845,6.11034,1636.6,1636.3,6.66124]
[1744659102047,6.11034,1636.6,1636.3,6.66122]
[1744659102373,18.07192,1636.7,1636.4,6.11083]
[1744659102736,18.07192,1636.7,1636.4,12.22168]
[1744659103265,18.07192,1636.7,1636.4,6.11083]
[1744659103470,18.07192,1636.7,1636.4,12.22168]
[1744659103667,18.07192,1636.7,1636.4,6.11091]
[1744659104049,18.07192,1636.7,1636.4,12.22177]
[1744659105169,18.07192,1636.7,1636.4,12.22171]
[1744659105369,11.93192,1636.7,1636.4,12.2217]
[1744659105572,11.93192,1636.7,1636.4,6.11085]
[1744659105780,11.93192,1636.7,1636.3,0.55]
[1744659105781,6.11097,1636.4,1636.3,0.55]
[1744659105979,6.92805,1636.5,1636.3,0.55]
[1744659106175,3.0,1636.6,1636.4,6.11083]
[1744659106379,9.1103,1636.6,1636.3,12.77255]
[1744659106574,9.1103,1636.6,1636.3,6.66122]
[1744659106777,15.164492,1636.7,1636.4,6.11097]
[1744659106983,15.164492,1636.7,1636.3,6.66122]
[1744659107184,9.054542,1636.7,1636.3,6.66122]
[1744659107381,15.164492,1636.7,1636.3,6.66123]
[1744659107584,9.054542,1636.7,1636.4,6.11068]
[1744659107877,21.274492,1636.7,1636.4,6.11068]
[1744659108387,6.1103,1636.6,1636.3,12.77246]
[1744659108784,6.1103,1636.6,1636.3,12.77244]
[1744659108982,21.274532,1636.7,1636.3,12.77244]
[1744659109162,6.11035,1636.6,1636.3,6.66122]
[1744659109480,6.11035,1636.6,1636.3,12.77244]
[1744659109952,6.11035,1636.6,1636.3,6.66122]
[1744659110303,6.11035,1636.6,1636.3,12.77244]
[1744659110583,6.11035,1636.6,1636.3,6.66122]
[1744659110780,6.11073,1636.5,1636.3,0.55]
[1744659110981,12.22154,1636.5,1636.3,0.55]
[1744659111185,6.11073,1636.5,1636.3,0.55]
[1744659111389,12.22147,1636.5,1636.3,0.55]
[1744659111598,6.11073,1636.5,1636.3,0.55]
[1744659111777,6.11025,1636.6,1636.3,6.66108]
[1744659112157,12.22068,1636.6,1636.3,6.66108]
[1744659112387,6.11074,1636.5,1636.3,0.55]
[1744659113399,12.22157,1636.5,1636.3,0.55]
[1744659113699,7.4909,1636.4,1636.3,0.55]
[1744659113899,6.66172,1636.2,1636.1,0.05]
[1744659114101,16.27262357,1636.2,1636.1,0.05]
[1744659114307,19.27262357,1636.2,1636.1,0.05]
[1744659114501,19.35618836,1636.2,1636.1,0.05]
[1744659115000,22.87555734,1636.2,1636.1,0.05]
[1744659115203,22.87555734,1636.2,1636.1,1e-05]
[1744659115405,29.01555734,1636.2,1636.1,1e-05]
[1744659116400,9.90966,1636.0,1635.9,0.3966834]
[1744659116699,21.26785657,1636.0,1635.9,0.23005269]
[1744659117184,18.201853,1636.0,1635.9,0.23005269]
[1744659117388,21.26785657,1636.0,1635.9,0.23005269]
[1744659117968,18.201853,1636.0,1635.9,0.23005269]
[1744659118278,9.11246,1636.0,1635.9,0.23005269]
[1744659118980,12.72846357,1636.0,1635.9,0.23005269]
[1744659119487,10.47386,1636.0,1635.9,0.23005269]
[1744659120704,9.11246,1636.0,1635.9,0.23005269]
[1744659121004,6.66246,1636.0,1635.9,0.23005269]
[1744659121206,8.514432,1636.0,1635.9,0.23005269]
[1744659122439,12.275732,1636.0,1635.9,0.23005269]
[1744659122722,9.66321,1635.8,1635.2,0.55]
[1744659122903,6.11487,1635.4,1635.2,0.55]
[1744659123273,6.13999731,1635.5,1635.3,6.11494]
[1744659124030,12.25438731,1635.5,1635.2,7.42384]